Workbook

Sheet Cover Page
D1: BIOMASS UK NO.3 LIMITED
N2: Version 20.5
B8: Add photo
N13: Notes:
N14: This template may require adjustments by individual operators to meet specific reporting requirements as defined in the site Permit(s)
B29: Annual Performance Report 2022
B31: Permit EPR/UP3131DF
B33: Boston Energy Production Facility
B35: Biomass UK No 3
B39: Year: | C39: 2022
B41: Address: | C41: Riverside Industrial Estate, Marsh lane, Boston Lincolnshire PE21 7TN
B43: Tel: | C43: 1179372811
B45: Email: | C45: emily.hingston@sol-environment.co.uk
B47: Prepared by: | C47: Emily Hingston | F47: Position: | G47: Consultant
B49: Approved by: | C49: Randall Smith | F49: Position: | G49: Technical Manager
B51: Version: | C51: 1
B53: Issue Date: | C53: 2023-01-31

Sheet Contents
A1: =+'Cover Page'!$B$29 -> Annual Performance Report 2022 | E1: =+'Cover Page'!$B$33 -> Boston Energy Production Facility
A3: Contents | K3: Notes:
A4: Section | B4: Subject | H4: Page | K4: Section references and Page nos. to be inserted
B5: Facility Information | K5: Sections and Subjects may require adjustment by individual operators to meet specific reporting requirements as defined in the sites Permit(s)
B6: Operational Summary
B7: Operational Data
B8: Performance Form 1
B9: Energy Form 1
B10: Permit Compliance
B11: Improvements
B12: Public Liasion
B13: Residue Quality - Optional
B14: Emissions to Water
B15: Emissions to Air (periodically monitored)
B16: Emissions to Air (continuously monitored)
B17: Hydrogen Chloride emissions
B18: Sulphur Dioxdie emsissions
B19: Oxides of Notrigen emissions
B20: Total Organic Carbon emissions
B21: Particulate Matter emissions
B22: Carbon Monoxide emissions
B23: Ammonia emissions
A26: Version Control
A27: Section | B27: Information | H27: Date
A34: Distribution
A35: Copy | B35: Name, Role | H35: No.
A44: This report is required under the Industrial Emissions Directive’s Article 55(2) requirements on reporting and public information on waste incineration plants and co-incineration plants, which require the operator to produce an annual report on the functioning and monitoring of the plant and make it available to the public.

Sheet Facility Info
A1: =+'Cover Page'!$B$29 -> Annual Performance Report 2022 | E1: =+'Cover Page'!$B$33 -> Boston Energy Production Facility
A3: Plant Description and Design | K3: Notes:
A5: The Boston Energy Production Facility is a renewable energy generation facility which has been designed to recover energy from pre-prepared mixed waste wood and RDF feedstocks using gasification. The gasification facility is an Advanced Thermal Treatment (ATT) process that will produce a combustible synthesis gas, which is then used to raise steam and generate electricity, through steam cycle turbine generation. The Advanced Thermal Treatment (ATT) plant is designed to process shredded mixed waste wood feedstocks to produce heat to raise steam in a conventional tube boiler for utilisation in a steam turbine for the production of renewable electricity with an export capacity up to 11.7MWe. The Installation has been designed to process approximately 86,400 tonnes of pre-processed non-hazardous mixed waste wood or RDF per annum. | K5: Include summary of plant design, design capacity, no. of combustion lines, electrical and heat capacity and any other general information that describes the facility, its location and purpose
A20: Summary of Operational Processes and Procedures
A22: The principle components of the process comprise the following: Waste Acceptance and Reception: All waste wood or RDF is delivered directly into the fuel storage building via electrically operated roller shutter doors. Should both waste streams be accepted onsite at the same time, the piles will separated by concrete bay walls. When required, the waste is discharged onto the feedstock feed system, which delivers the waste into the gasification building. All waste is accepted in accordance to the sites waste acceptance procedures. Gasification: The feedstock feed system delivers the waste into the fluidised bed gasification system where the waste is combusted to produce a synthetic gas (syngas). The syngas is then combusted to produce a high temperature flue-gas. A steam boiler then recovers the heat from the combustion gases through the conversion into superheated steam. Electricity Generation: The superheated steam then passes to a Steam Turbine and Generator, which will export 11.7MWe of renewable electricity onto the Local Distribution Network. Flue-Gas Cleaning: Flue gas cleaning and pollution control consists of urea injection for De-NOx, lime injection for acid gas neutralisation and activated carbon powder injection for absorption and removal of heavy metals, dioxins, VOCs and other harmful substances. The stream has a baghouse system, which is designed to have the capacity to remove submicron dust particles within anticipated emission limit values (ELV’s) stipulated by Chapter IV of the Industrial Emissions Directive (IED). The plant is operated in accordance with its Environmental Management System which is designed to meet the requirements of ISO14001:2004. | K22: Include summary of key processes and procedures such as (but not limited to); waste reception, control rooms, grate, bed and boiler, energy & heat generation, cooling systems, residue management, emission controls, health and safety systems, maintenance

Sheet Operational Data
A1: =+'Cover Page'!$B$29 -> Annual Performance Report 2022 | E1: Biomass UK No 3
A3: Operational Data | K3: Notes:
A4: Plant Size | B4: 86400 | D4: tonnes pa | F4: MWth | G4: 12 | H4: MWe | K4: * - RDF to include SRF
A5: No. of combustion lines | B5: 1 | D5: No. of Turbines: | F5: 1 | K5: ** - CHP plants only
K6: 2020 updates include; heat in MWh, water in Litres, NCV in MJ/kg
A7: Waste types received | B7: Unit | C7: Q1 | D7: Q2 | E7: Q3 | F7: Q4 | G7: Year Total | H7: %
A8: Household / Local Authority | B8: tonnes | C8: 0 | D8: 0 | E8: 0 | F8: 0 | G8: =SUM(C8:F8) -> 0 | H8: =IF(G8>0,G8/$G$15,"-") -> - | K8: Availabiity Definition: 'the availability of a line is to be calculated by the number of hours the line reported Continuously Monitored emission levels to the Regulator through the calendar year divided by the total number of hours in that year. The overall plant availability is calculated as the Mean of all lines in the plant. For clarity this includes periods of Other Than Normal Operating Conditions (OTNOC) and abnormal operation.' Rationale: The primary function of an Energy from Waste facility is the disposal of waste. It follows therefore that the availability of a plant is determined by the period of time a facility spends undertaking this activity.
A9: Commercial & Industrial | C9: 0 | D9: 0 | E9: 0 | F9: 0 | G9: =SUM(C9:F9) -> 0 | H9: -
A10: Hazardous | C10: 0 | D10: 0 | E10: 0 | F10: 0 | G10: 0 | H10: -
A11: Clinical | C11: 0 | D11: 0 | E11: 0 | F11: 0 | G11: 0 | H11: -
A12: Waste wood (biomass) | C12: 10145 | D12: 0 | E12: 0 | F12: 0 | G12: 10145 | H12: 0.4619872602
A13: Refuse Derived Fuel * - H'hold/LA | C13: 0 | D13: 0 | E13: 6082.54 | F13: 5731.94 | G13: =SUM(C13:F13) -> 11814.48 | H13: 0.5380127398
A14: Refuse Derived Fuel * - C&I | C14: 0 | D14: 0 | E14: 0 | F14: 0 | G14: 0 | H14: -
A15: Total waste received | C15: =SUM(C8:C14) -> 10145 | D15: =SUM(D8:D14) -> 0 | E15: =SUM(E8:E14) -> 6082.54 | F15: 5731.94 | G15: =SUM(G8:G14) -> 21959.48 | H15: 1
A16: Rejected Waste | C16: 0 | D16: 0 | E16: 0 | F16: 0 | G16: =SUM(C16:F16) -> 0 | H16: =IF(G16>0,G16/$G$15,"-") -> -
A17: Unprocessed waste transferred out | C17: 319.62 | D17: 0 | E17: 0 | F17: 0 | G17: =SUM(C17:F17) -> 319.62 | H17: =IF(G17>0,G17/$G$15,"-") -> 0.01455498946
A18: Total waste combusted | C18: =C15-SUM(C16:C17) -> 9825.38 | D18: =D15-SUM(D16:D17) -> 0 | E18: 6082.54 | F18: 5731.94 | G18: =SUM(C18:F18) -> 21639.86 | H18: =IF(G18>0,G18/$G$15,"-") -> 0.9854450105
A20: Energy Useage / Export | B20: Unit | C20: Q1 | D20: Q2 | E20: Q3 | F20: Q4 | G20: Year Total | H20: KWh/te
A21: Power Generated | B21: MWh | C21: 8540 | D21: 0 | E21: 5542 | F21: 5545 | G21: =SUM(C21:F21) -> 19627 | H21: =IF(G21>0,G21*1000/$G$18,"-") -> 906.9836866
A22: Power Exported | C22: 5366 | D22: 0 | E22: 4431 | F22: 4332 | G22: =SUM(C22:F22) -> 14129 | H22: =IF(G22>0,G22*1000/$G$18,"-") -> 652.9154995
A23: Power Used on site | C23: 3765 | D23: 0 | E23: 1816 | F23: 1918 | G23: =SUM(C23:F23) -> 7499 | H23: =IF(G23>0,G23*1000/$G$18,"-") -> 346.5364379
A24: Power Imported | C24: 603 | D24: 376 | E24: 673 | F24: 705 | G24: 2357 | H24: =IF(G24>0,G24*1000/$G$18,"-") -> 108.9193738
A25: Parasitic Load | B25: % | C25: =IF(C21>0,1-C22/(C21+C24),"-") -> 0.4131029203 | D25: =IF(D21>0,1-D22/(D21+D24),"-") -> - | E25: =IF(E21>0,1-E22/(E21+E24),"-") -> 0.2870474658 | F25: =IF(F21>0,1-F22/(F21+F24),"-") -> 0.30688 | G25: =IF(G21>0,1-G22/(G21+G24),"-") -> 0.357305313
A26: Thermal Energy Produced ** | B26: MWh | G26: =SUM(C26:F26) -> 0 | H26: =IF(G26>0,G26*1000/$G$18,"-") -> -
A27: Thermal Energy Exported ** | G27: 0 | H27: =IF(G27>0,G27*1000/$G$18,"-") -> -
A28: R1 value | G28: Design / Operational / n/a
A30: Waste Disposal & Recovery | B30: Unit | C30: Q1 | D30: Q2 | E30: Q3 | F30: Q4 | G30: Year Total | H30: % inputs
A31: APC Residues - produced | B31: tonnes | C31: 113.8 | D31: 0 | E31: 363.56 | F31: 599.42 | G31: =SUM(C31:F31) -> 1076.78 | H31: =IF(G31>0,G31/$G$15,"-") -> 0.04903485875
A32: IBA - produced | C32: 395 | D32: 0 | E32: 608 | F32: 185.58 | G32: 1188.58 | H32: =IF(G32>0,G32/$G$15,"-") -> 0.05412605399
A33: Metals recycling | C33: 26.9 | D33: 0 | E33: 33.8 | F33: 27.7 | G33: =SUM(C33:F33) -> 88.4 | H33: =IF(G33>0,G33/$G$15,"-") -> 0.004025596235
A35: Raw Material Usage | B35: Unit | C35: Q1 | D35: Q2 | E35: Q3 | F35: Q4 | G35: Year Total | H35: kg or Ltr /te
A36: Mains Water | B36: M3 | C36: 9682 | D36: 6131 | E36: 10870 | F36: 7241 | G36: =SUM(C36:F36) -> 33924 | H36: =IF(G36>0,G36/$G$15,"-") -> 1.544845324
A37: Other Water | B37: ltrs | C37: 0 | D37: 0 | E37: 0 | F37: 0 | G37: 0 | H37: =IF(G37>0,G37/$G$15,"-") -> -
A38: Ammonia | B38: kgs | C38: 0 | D38: 0 | E38: 0 | F38: 0 | G38: 0 | H38: =IF(G38>0,G38/$G$15,"-") -> -
A39: Urea | B39: kgs | C39: 16630 | D39: 0 | E39: 11850 | F39: 2000 | G39: =SUM(C39:F39) -> 30480 | H39: =IF(G39>0,G39/$G$15,"-") -> 1.388011009
A40: Activated Carbon | B40: kgs | C40: 0 | D40: 0 | E40: 797 | F40: 648 | G40: 1445 | H40: =IF(G40>0,G40/$G$15,"-") -> 0.06580301537
A41: Lime / hydrated lime | B41: kgs | C41: 183000 | E41: 113000 | F41: 128000 | G41: 424000 | H41: 19.30828963
A42: Fuel oil | B42: ltrs | C42: 666113 | D42: 0 | E42: 893920 | F42: 347423 | G42: 1907456 | H42: 86.86253044
A43: Gas | B43: cf | C43: 0 | D43: 0 | E43: 0 | F43: 0 | G43: 0
A45: Summary | B45: Line/Unit | C45: Q1 | D45: Q2 | E45: Q3 | F45: Q4 | G45: Year Total | J45: Hrs in year
A46: Availability of waste combustion by line, hrs | B46: =+B5 -> 1 | C46: 932 | D46: 0 | E46: 585 | F46: 574 | G46: =SUM(C46:F46) -> 2091 | H46: =(G46/J46) -> 0.2386986301 | J46: 8760
A47: Overall Availability, mean avg. of all lines, hrs | G47: =AVERAGE(G46) -> 2091 | H47: =(G47/J46) -> 0.2386986301
A48: Hours of turbine operations, hrs | B48: 1 | C48: 932 | D48: 0 | E48: 585 | F48: 574 | G48: =SUM(C48:F48) -> 2091 | H48: =(G48/J46) -> 0.2386986301
A49: Hours of heat / steam export | G49: 0 | H49: =IF(B49>0,#REF!/J46,"n/a") -> n/a
A50: Net Calorific Value of waste | B50: MJ/kg | C50: 14 | D50: - | E50: 17.4 | F50: 13.7 | H50: -
A51: Abnormal Events | B51: qty. | C51: 0 | D51: 0 | E51: 0 | F51: 0 | G51: 0 | H51: =IF(G51>0,"yes","no") -> no
A52: Abnormal operation | B52: hours | C52: 0 | D52: 0 | E52: 0 | F52: 0 | G52: 0 | H52: =+(G52)/J46 -> 0
A53: Permit Breaches | B53: qty. | C53: 0 | D53: 0 | E53: 4 | F53: 0 | G53: 4 | H53: =IF(G53>0,"yes","no") -> yes

Sheet Operational Summary
A1: =+'Cover Page'!$B$29 -> Annual Performance Report 2022 | E1: Biomass UK No 3
A3: Summary of Plant Operations and Maintenance during the reporting year | K3: Notes:
A5: The plant began the year running on wood fuel, operating until a planned upgrade shut down in April. During this shut down which lasted for all of Q2 an upgrade was carried out on the fuel feed system to the gasifier. This comprised of considerable upgrades to the metering bins and feed screws, which also required some structural modifications to accommodate the new larger equipment. The plant returned to service in July using RDF as a fuel, after trialling the RDF the fuel was then switched to SRF and remained on this fuel for the rest of the year and will continue to run on this fuel. The plant ran for 3 weeks at a time to allow for internal inspections to assess the status of the gasifier and boiler, both required significant cleaning and de-slagging. During the latter stages of Q3 and most of Q4 the plant has run intermittently with regular shut downs required for cleaning and de-slagging. Engineers continuing to make adjustments to the software and some hardware changes to improve the availability of the plant. There will be further adjustments and modifications ongoing into 2023 to improve plant reliability and availability. | K5: Include summary of key operational and/or maintenance activity undertaken in the year, such as any major component upgrades and/or replacements
A29: Summary of Residue Handling for the reporting year
A31: Fuel sampling was carried out daily during the initial month of fuel change from wood to RDF. This was reduced to weekly sampling during Q4. Monthly sampling of IBA and APCR commenced in July in line with Schedule 4 of the Environmental Permit. IBA and APCR is handled by a broker N+P, and taken to the Augean site in Peterborough. | K31: Include in here a summary of residue handling regimes and destinations

Sheet Perf. Form 1
A1: =+'Cover Page'!C39 -> 2022 | B1: Annual Reporting Performance Form 1
A3: =+'Cover Page'!B31 -> Permit EPR/UP3131DF | F3: Operator: | G3: =+'Cover Page'!B37:I37 -> 0
A4: Facility: | B4: =+'Cover Page'!B33:I33 -> Boston Energy Production Facility | F4: Form: | G4: Performance 1
A6: Reporting Period from: | D6: 2022-01-01 | F6: to: | G6: 2022-12-31
A8: =+A1 -> 2022 | B8: Annual Reporting of Waste Disposal and Recovery
A9: Waste Description | C9: Disposal Route(s) | E9: Disposal Tonnes | G9: Recovery Tonnes | I9: % / tonne of waste incinerated
A10: 1) Hazardous Wastes
A11: APC Residues | E11: 1077 | G11: 0 | I11: =IF((E11+G11)>0,(E11+G11)/'Operational Data'!$G$18, "-") -> 0.04976926838
A12: IBA | E12: 1189 | G12: 0 | I12: =IF((E12+G12)>0,(E12+G12)/'Operational Data'!$G$18, "-") -> 0.0549449026
I13: =IF((E13+G13)>0,(E13+G13)/'Operational Data'!$G$18, "-") -> -
I14: =IF((E14+G14)>0,(E14+G14)/'Operational Data'!$G$18, "-") -> -
A15: Total Hazardous Waste | E15: =SUM(E11:F14) -> 2266 | G15: =SUM(G11:H14) -> 0 | I15: =IF((E15+G15)>0,(E15+G15)/'Operational Data'!$G$18, "-") -> 0.104714171
A17: 2) Non-Hazardous Wastes
A18: IBA | E18: 0 | G18: 0 | I18: =IF((E18+G18)>0,(E18+G18)/'Operational Data'!$G$18, "-") -> -
A19: Ferrous Metal | E19: 0 | G19: 88 | I19: =IF((E19+G19)>0,(E19+G19)/'Operational Data'!$G$18, "-") -> 0.004066569747
A20: Process Water | E20: 0 | G20: 0 | I20: =IF((E20+G20)>0,(E20+G20)/'Operational Data'!$G$18, "-") -> -
I21: =IF((E21+G21)>0,(E21+G21)/'Operational Data'!$G$18, "-") -> -
I22: =IF((E22+G22)>0,(E22+G22)/'Operational Data'!$G$18, "-") -> -
A23: Total Non-Hazardous Waste | E23: =SUM(E18:F22) -> 0 | G23: =SUM(G18:H22) -> 88 | I23: =IF((E23+G23)>0,(E23+G23)/'Operational Data'!$G$18, "-") -> 0.004066569747
A24: TOTAL WASTE | E24: =+E23+E15 -> 2266 | G24: =+G23+G15 -> 88 | I24: =IF((E24+G24)>0,(E24+G24)/'Operational Data'!$G$18, "-") -> 0.1087807407
A26: Operator’s comments :
A31: =+A1 -> 2022 | B31: Annual Reporting of Water and Other Raw Material Usage
A32: Raw Material | E32: Usage | G32: Unit | H32: Specific Useage | J32: Unit
A33: Mains Water | E33: =+'Operational Data'!G36 -> 33924 | G33: m3 | H33: =IF(E33>0,E33/'Operational Data'!$G$18,"-") -> 1.567662637 | J33: m3/te
A34: Total Water | E34: =+'Operational Data'!G37+'Operational Data'!G36 -> 33924 | G34: m3 | H34: =IF(E34>0,E34/'Operational Data'!$G$18,"-") -> 1.567662637 | J34: m3/te
A35: Urea / Ammonia | E35: =+'Operational Data'!G39 -> 30480 | G35: kg | H35: =IF(E35>0,E35/'Operational Data'!$G$18,"-") -> 1.408511885 | J35: kg/te
A36: Activated Carbon | E36: =+'Operational Data'!G40 -> 1445 | G36: kg | H36: =IF(E36>0,E36/'Operational Data'!$G$18,"-") -> 0.06677492368 | J36: kg/te
A37: Lime / hydrated lime / Sodium Bicarb. | E37: =+'Operational Data'!G41 -> 424000 | G37: kg | H37: =IF(E37>0,E37/'Operational Data'!$G$18,"-") -> 19.59347242 | J37: kg/te
A39: Operator’s comments :
A43: =+A31 -> 2022 | B43: Annual Reporting of other performance indicators
A44: Parameter | C44: Results by Line
C45: A1 | I45: Turbine 1
A46: Operating hours for the year, hours | C46: 2091 | I46: 2091
A47: Number of periods of abnormal operation, qty. | C47: 0 | I47: 0
A48: Cumulative hours of abnormal operation for this year, hours | C48: 0 | I48: 0
A50: Operator’s comments :
A54: Signed: | G54: Date:

Sheet Energy Form 1
A1: =+'Cover Page'!C39 -> 2022 | B1: Annual Reporting of Energy Usage/Export
A3: =+'Cover Page'!B31 -> Permit EPR/UP3131DF | F3: Operator: | G3: =+'Cover Page'!B37:I37 -> 0
A5: Facility: | B5: =+'Cover Page'!B33:I33 -> Boston Energy Production Facility | F5: Form: | G5: Energy 1
A7: Reporting Period from: | D7: =+'Perf. Form 1'!D6:E6 -> 2022-01-01 | F7: to: | G7: =+'Perf. Form 1'!G6:H6 -> 2022-12-31
A9: Energy Source | D9: Energy Usage | F9: Unit | G9: Specific Useage (KWh/tonne incinerated
A10: Electricity Produced | D10: =+'Operational Data'!G21 -> 19627 | F10: MWh | G10: =+'Operational Data'!H21 -> 906.9836866
A11: Electricity Imported | D11: =+'Operational Data'!G24 -> 2357 | F11: MWh | G11: =+'Operational Data'!H24 -> 108.9193738
A12: Electricity Exported | D12: =+'Operational Data'!G22 -> 14129 | F12: MWh | G12: =+'Operational Data'!H22 -> 652.9154995
A13: Gas Oil | F13: tonnes
A14: Steam/hot water exported | D14: =+'Operational Data'!G27 -> 0 | F14: GWh | G14: =+'Operational Data'!H27 -> -
A18: Operator’s comments :
A29: Signed: | G29: Date:

Sheet Permit Compliance
A1: =+'Cover Page'!$B$29 -> Annual Performance Report 2022 | E1: =+'Cover Page'!$B$33 -> Boston Energy Production Facility
A3: Summary of Permit Compliance
A5: Compliance with permit limits for continuously monitored pollutants
A7: The plant met its emission limits as shown in the table below:
A8: Substance | C8: Percentage time compliant during operation | L8: Notes:
C9: Half-hourly limit | F9: Daily limit | L9: Report to 2 decimal places, i.e. xx.xx% Please provide a brief summary of each notification or non-compliance in the table (rather than just referring to notifications that were sent to the Regulator).
A10: Particulates | C10: 1 | F10: 1
A11: Oxides of nitrogen | C11: 1 | F11: 1
A12: Sulphur dioxide | C12: 1 | F12: 1
A13: Carbon monoxide | C13: 0.99 | F13: 1
A14: Total organic carbon | C14: 1 | F14: 1
A15: Hydrogen chloride | C15: 0.9909 | F15: 0.99
A16: Hydrogen fluoride | C16: 1 | F16: 1
A19: Summary of any notifications or non-compliances under the permit
A20: Date | B20: Summary of notification or non-compliance [including Line/Reference] | E20: Reason | H20: Measures taken to prevent reoccurrence
A21: 2022-07-10 | B21: HCL 1/2 hrly ELV breached (66.35 mg/m3). Process stopped and blockage cleared. | E21: Blockage of lime feed pipe | H21: New feed hose sourced and fitted
A22: 2022-07-14 | B22: HCL 1/2 hrly ELV (62.45 mg/m3) and daily average ELV breached (14.8mg/m3) | E22: Increase in flow during commissioning activities | H22: Increase dosing flow rate and tune plant during commissioning
A23: 2022-09-21 | B23: CO 1/2 hrly ELV breached (175.42 mg/m3) | E23: Solid fuel plug lost due to level control issues caused ingress of air | H23: Additional level switched and faster rection time of low level protection swtiches
A24: 2022-09-21 | B24: CO 1/2 hrly ELV breached (154 mg/m3) | E24: Fuel feed screw sensor defective | H24: Sensor taken out of service
A26: Summary of any complaints received and actions to taken to resolve them.
A27: Date | B27: Summary of complaint [including Line/Reference] | E27: Reason * | H27: Measures taken to prevent reoccurrence
B28: N/A
E33: * including whether substantiated by the operator or the EA

Sheet Improvements
A1: =+'Cover Page'!$B$29 -> Annual Performance Report 2022 | E1: =+'Cover Page'!$B$33 -> Boston Energy Production Facility
A3: Summary of Plant Improvements
A5: Summary of any efficiency improvements that have been completed within the year.
A6: Please see below.
A16: Summary of any permit improvement conditions that have been completed within the year and the resulting environmental benefits.
A17: N/A - permit improvement conditions relate to post commissioning and will be undertaken in 2023
A27: Summary of any changes to the plant or operating techniques which required a variation to the permit and a summary of the resulting environmental impact.
A28: The plant switched fuel during 2022 from wood to RDF which required a permit variation which was completed in 2020.
A38: Summary of any other improvements made to the plant or planned to be made and a summary of the resulting environmental benefits.
A39: Several improvements have been made in the control room during 2022 including newly installed large monitor screens which improve visibility of data to everyone in the control room and the improvement of visibility of Air 1/2 hrly ELVs including a traffic light system to warn of nearing ELVs. Moving conveyors and dust management have been improved due to the change to RDF as feedstock. A new OFGR fan has been installed to cool the gasifier. Relocation of a fire detection system was undertaken as it was being triggered by direct sunlight during the hot weather.

Sheet Public Liasion
A1: =+'Cover Page'!$B$29 -> Annual Performance Report 2022 | E1: =+'Cover Page'!$B$33 -> Boston Energy Production Facility
A3: Details of Public & Stakeholder Liasion
A5: Summary of events held during the reporting year.
A6: Date | C6: Description
A7: N/A
A16: List of events planned for next year
A17: Date | C17: Description
A18: 2023 | C18: None yet planned
A29: If you wish to be involved in the public liasion programme, please contact _________________

Sheet Residue Quality
A1: =+'Cover Page'!$B$29 -> Annual Performance Report 2022 | E1: =+'Cover Page'!$B$33 -> Boston Energy Production Facility
A3: Residue Quality Monitoring Requirements
A5: Summary of monitoring undertaken and compliance
A6: Monthly IBA and APCr testing commenced in July following the change to RDF feedstock. Full hazard testing undertaken by Socotec on IBA resulting in compliance as non-hazardous throughout 2022.
A13: Commentary on any specific events
A14: Date & Event | C14: Description
A27: Residue Quality Monitoring Results
A28: Parameter (unit) | C28: Limit | D28: Normal Operation
D29: Bottom ash | F29: APC Residues
A30: Loss on Ignition (average %) | C30: <5% | D30: <0.2
A31: Total Organic Carbon (average %) | C31: <3% | D31: 0.44
A32: No. of Assessments Undertaken | C32: --- | D32: 11 | F32: 5
A33: No. of Hazardous Results | C33: --- | D33: 0
A35: Comments :

Sheet Water
A1: =+'Cover Page'!$B$29 -> Annual Performance Report 2022 | E1: =+'Cover Page'!$B$33 -> Boston Energy Production Facility
A3: Emissions to Water
A5: Summary of monitoring undertaken and compliance
A6: N/A
A13: Commentary on any specific events
A14: Date & Event | C14: Description
A22: Emissions to Water / Sewer
A23: Parameter | D23: Monitoring Frequency | G23: Limit | H23: Target | I23: Max. | J23: Average

Sheet Air (periodic)
A1: =+'Cover Page'!$B$29 -> Annual Performance Report 2022 | E1: =+'Cover Page'!$B$33 -> Boston Energy Production Facility
A3: Emissions to Air (periodically monitored)
A5: Summary of monitoring undertaken, standards used and compliance | M5: Notes:
A6: QAL 2 Testing was undertaken following completion of commissioning in December 2022. Operator has been advised that the plant was compliant and is awaiting full report from testing company. | M6: Template may require adjustment for any bespoke monitoring requirements of permit.
A9: Results of emissions to air that are periodically monitored
A10: Substance | C10: Ref. Period | D10: Emission Limit Value | F10: Average | M10: User to add additional tables as necessary, depending on whether quarterly or bi-annual reporting is required for the compliance year
F11: A1
A12: Hydrogen fluoride | C12: 1 hr | D12: 2 mg/m3
A13: Cd and Th and their compounds | C13: 6-8hrs | D13: 0.05 mg/m3
A14: Hg and its compounds | C14: 6-8hrs | D14: 0.05 mg/m3
A15: Sb, As, Pb, Cr, Co, Cu, Mn, Ni, V and their compounds | C15: 6-8hrs | D15: 0.5 mg/m3
A16: Dioxins & Furans (I-TEQ) | C16: 6-8hrs | D16: 0.1 ng/m3
A17: PCBs (WHO-TEQ Humans / Mammals) | C17: 6-8hrs | D17: None set ng/m3
A18: PCBs (WHO-TEQ Fish) | C18: 6-8hrs | D18: None set ng/m3
A19: PCBs (WHO-TEQ Birds) | C19: 6-8hrs | D19: None set ng/m3
A20: Dioxins & Furans (WHO-TEQ Humans / Mammals) | C20: 6-8hrs | D20: None set ng/m3
A21: Dioxins & Furans (WHO-TEQ Fish) | C21: 6-8hrs | D21: None set ng/m3
A22: Dioxins & Furans (WHO-TEQ Birds) | C22: 6-8hrs | D22: None set ng/m3
A23: Anthanthrene | C23: 6-8hrs | D23: None set µg/m3
A24: Benzo(a)anthracene | C24: 6-8hrs | D24: None set µg/m3
A25: Benzo(a)pyrene | C25: 6-8hrs | D25: None set µg/m3
A26: Benzo(b)fluoranthene | C26: 6-8hrs | D26: None set µg/m3
A27: Benzo(b)naptho(2,1-d) thiophene | C27: 6-8hrs | D27: None set µg/m3
A28: Benzo(c)phenanthrene | C28: 6-8hrs | D28: None set µg/m3
A29: Benzo(ghi)perylene | C29: 6-8hrs | D29: None set µg/m3
A30: Benzo(k)fluoranthene | C30: 6-8hrs | D30: None set µg/m3
A31: Cholanthrene | C31: 6-8hrs | D31: None set µg/m3
A32: Chrysene | C32: 6-8hrs | D32: None set µg/m3
A33: Cyclopenta(cd)pyrene | C33: 6-8hrs | D33: None set µg/m3
A34: Dibenzo(ai)pyrene | C34: 6-8hrs | D34: None set µg/m3
A35: Dibenzo(ah)anthracene | C35: 6-8hrs | D35: None set µg/m3
A36: Fluoranthene | C36: 6-8hrs | D36: None set µg/m3
A37: Indeno(123-cd) pyrene | C37: 6-8hrs | D37: None set µg/m3
A38: Naphthalene | C38: 6-8hrs | D38: None set µg/m3
A39: Comments :

Sheet Air (CEMS)
A1: =+'Cover Page'!$B$29 -> Annual Performance Report 2022 | I1: =+'Cover Page'!$B$33 -> Boston Energy Production Facility
A3: Emissions to Air (continously monitored)
P4: Notes:
A5: Summary of monitoring undertaken, standards used and compliance | P5: Template may require adjustment for any bespoke monitoring requirements of permit
A6: CEMS monitoring has been undertaken in line with the permit. | P6: Report to 2 decimal places, i.e. xx.xx%
A11: Results of emissions to air that are continuously monitored (maximum and average values for each line)
A12: Substance | B12: Reference Period | C12: Emission Limit Value | D12: A1
D13: Max. | E13: Avg.
A14: Oxides of nitrogen | B14: Daily mean | C14: 200 mg/m3 | D14: =NOx!O19 -> 169 | E14: =NOx!N19 -> 75.5125
B15: ½ hourly mean | C15: 400 mg/m3 | D15: =NOx!M19 -> 246 | E15: =NOx!L19 -> 75.66666667
A16: Particulates | B16: Daily mean | C16: 10 mg/m3 | D16: =Particulates!O19 -> 1 | E16: =Particulates!N19 -> 0.1666666667
B17: ½ hourly mean | C17: 30 mg/m3 | D17: =Particulates!M19 -> 5 | E17: =Particulates!L19 -> 0.1666666667
A18: Total Organic Carbon | B18: Daily mean | C18: 10 mg/m3 | D18: =TOC!O19 -> 2 | E18: =TOC!N19 -> 0
B19: ½ hourly mean | C19: 20 mg/m3 | D19: =TOC!M19 -> 21 | E19: =TOC!L19 -> 0
A20: Hydrogen chloride | B20: Daily mean | C20: 10 mg/m3 | D20: =HCl!O19 -> 15 | E20: =HCl!N19 -> 3.801666667
B21: ½ hourly mean | C21: 60 mg/m3 | D21: =HCl!M19 -> 66 | E21: =HCl!L19 -> 3.75
A22: Sulphur dioxide | B22: Daily mean | C22: 50 mg/m3 | D22: ='SO2'!O19 -> 34 | E22: ='SO2'!N19 -> 6.060833333
B23: ½ hourly mean | C23: 200 mg/m3 | D23: ='SO2'!M19 -> 152 | E23: ='SO2'!L19 -> 6.083333333
A24: Carbon monoxide | B24: Daily mean | C24: 50 mg/m3 | D24: ='CO 0.5hourly'!O19 -> 23 | E24: ='CO 0.5hourly'!N19 -> 4.03
B25: ½ hourly mean * | C25: 100 mg/m3 * | D25: ='CO 0.5hourly'!M19 -> 175 | E25: ='CO 0.5hourly'!L19 -> 4
A26: Ammonia | B26: Daily mean | C26: No limit set | D26: ='NH3'!O19 -> 5 | E26: ='NH3'!N19 -> 0.3725
A27: * = delete or amend as appropriate
A28: Comments :

Sheet HCl
A1: =+'Cover Page'!$B$29 -> Annual Performance Report 2022 | E1: =+'Cover Page'!$B$33 -> Boston Energy Production Facility
A3: Monitoring of Hydrogen Chloride emissions | D3: Whole Installation | G3: See Notes in Cell Q3 | J3: =+A3 -> Monitoring of Hydrogen Chloride emissions | N3: Per Combustion Line | Q3: Notes:
Q4: User to add logic to complete Whole installation, Table A5:G18. From the data in Per Combustion Line, Table J6:O79, subject to No. of lines installed
A5: mg/Nm3 | B5: 1/2 Hourly Reference Periods | E5: Daily Reference Periods
A6: =+'Cover Page'!C39 -> 2022 | B6: 1/2 hourly HCl ELV | C6: Monthly 1/2 hourly mean | D6: Highest 1/2 hourly maximum | E6: Daily HCl ELV | F6: Monthly daily mean | G6: Highest daily maximum | J6: =+A6 -> 2022 | K6: mg/Nm3 | L6: Monthly 1/2 hourly mean | M6: Monthly 1/2 hourly maximum | N6: Monthly daily mean | O6: Monthly daily maximum
A7: Jan | B7: 60 | C7: =L7 -> 1 | D7: =M7 -> 5 | E7: 10 | F7: =N7 -> 0.64 | G7: =O7 -> 2 | J7: A1 | K7: Jan | L7: 1 | M7: 5 | N7: 0.64 | O7: 2
A8: Feb | B8: 60 | C8: =L8 -> 5 | D8: =M8 -> 23 | E8: 10 | F8: =N8 -> 5.04 | G8: =O8 -> 10 | K8: Feb | L8: 5 | M8: 23 | N8: 5.04 | O8: 10
A9: Mar | B9: 60 | C9: 3 | D9: 12 | E9: 10 | F9: 2.95 | G9: 8 | K9: Mar | L9: 3 | M9: 12 | N9: 2.95 | O9: 8 | Q9: Whole Installation table A5:G18:
A10: Apr | B10: 60 | C10: 0 | D10: 0 | E10: 10 | F10: 0 | G10: 0 | K10: Apr | L10: 0 | M10: 0 | N10: 0 | O10: 0 | Q10: Mean: for 1/2 hourly and daily periods calculate mean of values across all operational combustion lines for the month
A11: May | B11: 60 | C11: 0 | D11: 0 | E11: 10 | F11: 0 | G11: 0 | K11: May | L11: 0 | M11: 0 | N11: 0 | O11: 0
A12: Jun | B12: 60 | C12: 0 | D12: 0 | E12: 10 | F12: 0 | G12: 0 | K12: Jun | L12: 0 | M12: 0 | N12: 0 | O12: 0
A13: Jul | B13: 60 | C13: 6 | D13: 66 | E13: 10 | F13: 5.84 | G13: 15 | K13: Jul | L13: 6 | M13: 66 | N13: 5.84 | O13: 15 | Q13: Maximum: for 1/2 hourly and daily periods use the highest value across all operational combustion lines for the month
A14: Aug | B14: 60 | C14: 6 | D14: 42 | E14: 10 | F14: 6.23 | G14: 10 | K14: Aug | L14: 6 | M14: 42 | N14: 6.23 | O14: 10
A15: Sep | B15: 60 | C15: 5 | D15: 22 | E15: 10 | F15: 5 | G15: 7 | K15: Sep | L15: 5 | M15: 22 | N15: 5 | O15: 7
A16: Oct | B16: 60 | C16: 5 | D16: 43 | E16: 10 | F16: 5.15 | G16: 10 | K16: Oct | L16: 5 | M16: 43 | N16: 5.15 | O16: 10
A17: Nov | B17: 60 | C17: 6 | D17: 18 | E17: 10 | F17: 6.35 | G17: 7 | K17: Nov | L17: 6 | M17: 18 | N17: 6.35 | O17: 7
A18: Dec | B18: 60 | C18: 8 | D18: 21 | E18: 10 | F18: 8.42 | G18: 10 | K18: Dec | L18: 8 | M18: 21 | N18: 8.42 | O18: 10
K19: Annual | L19: =AVERAGE(L7:L18) -> 3.75 | M19: =MAX(M7:M18) -> 66 | N19: =AVERAGE(N7:N18) -> 3.801666667 | O19: =MAX(O7:O18) -> 15
A48: Comments :

Sheet SO2
A1: =+'Cover Page'!$B$29 -> Annual Performance Report 2022 | E1: =+'Cover Page'!$B$33 -> Boston Energy Production Facility
A3: Monitoring of Sulphur dioxide emissions | D3: Whole Installation | G3: See Notes in Cell Q3 | J3: =+A3 -> Monitoring of Sulphur dioxide emissions | N3: Per Combustion Line | Q3: Notes:
Q4: User to add logic to complete Whole installation, Table A5:G18. From the data in Per Combustion Line, Table J6:O79, subject to No. of lines installed
A5: mg/Nm3 | B5: 1/2 Hourly Reference Periods | E5: Daily Reference Periods
A6: =+'Cover Page'!C39 -> 2022 | B6: 1/2 hourly SO2 ELV | C6: Monthly 1/2 hourly mean | D6: Highest 1/2 hourly maximum | E6: Daily SO2 ELV | F6: Monthly daily mean | G6: Highest daily maximum | J6: =+A6 -> 2022 | K6: mg/Nm3 | L6: Monthly 1/2 hourly mean | M6: Monthly 1/2 hourly maximum | N6: Monthly daily mean | O6: Monthly daily maximum
A7: Jan | B7: 200 | C7: =L7 -> 8 | D7: =M7 -> 16 | E7: 50 | F7: =N7 -> 7.71 | G7: =O7 -> 10 | J7: A1 | K7: Jan | L7: 8 | M7: 16 | N7: 7.71 | O7: 10
A8: Feb | B8: 200 | C8: =L8 -> 10 | D8: =M8 -> 27 | E8: 50 | F8: =N8 -> 10.04 | G8: =O8 -> 14 | K8: Feb | L8: 10 | M8: 27 | N8: 10.04 | O8: 14
A9: Mar | B9: 200 | C9: 7 | D9: 9 | E9: 50 | F9: 7.5 | G9: 8 | K9: Mar | L9: 7 | M9: 9 | N9: 7.5 | O9: 8 | Q9: Whole Installation table A5:G18:
A10: Apr | B10: 200 | C10: 0 | D10: 0 | E10: 50 | F10: 0 | G10: 0 | K10: Apr | L10: 0 | M10: 0 | N10: 0 | O10: 0 | Q10: Mean: for 1/2 hourly and daily periods calculate mean of values across all operational combustion lines for the month
A11: May | B11: 200 | C11: 0 | D11: 0 | E11: 50 | F11: 0 | G11: 0 | K11: May | L11: 0 | M11: 0 | N11: 0 | O11: 0
A12: Jun | B12: 200 | C12: 0 | D12: 0 | E12: 50 | F12: 0 | G12: 0 | K12: Jun | L12: 0 | M12: 0 | N12: 0 | O12: 0
A13: Jul | B13: 200 | C13: 16 | D13: 152 | E13: 50 | F13: 15.46 | G13: 34 | K13: Jul | L13: 16 | M13: 152 | N13: 15.46 | O13: 34 | Q13: Maximum: for 1/2 hourly and daily periods use the highest value across all operational combustion lines for the month
A14: Aug | B14: 200 | C14: 8 | D14: 36 | E14: 50 | F14: 7.76 | G14: 12 | K14: Aug | L14: 8 | M14: 36 | N14: 7.76 | O14: 12
A15: Sep | B15: 200 | C15: 6 | D15: 13 | E15: 50 | F15: 6.23 | G15: 7 | K15: Sep | L15: 6 | M15: 13 | N15: 6.23 | O15: 7
A16: Oct | B16: 200 | C16: 6 | D16: 8 | E16: 50 | F16: 5.92 | G16: 7 | K16: Oct | L16: 6 | M16: 8 | N16: 5.92 | O16: 7
A17: Nov | B17: 200 | C17: 6 | D17: 25 | E17: 50 | F17: 6.11 | G17: 10 | K17: Nov | L17: 6 | M17: 25 | N17: 6.11 | O17: 10
A18: Dec | B18: 200 | C18: 6 | D18: 14 | E18: 50 | F18: 6 | G18: 8 | K18: Dec | L18: 6 | M18: 14 | N18: 6 | O18: 8
K19: Annual | L19: =AVERAGE(L7:L18) -> 6.083333333 | M19: =MAX(M7:M18) -> 152 | N19: =AVERAGE(N7:N18) -> 6.060833333 | O19: =MAX(O7:O18) -> 34
A48: Comments :

Sheet NOx
A1: =+'Cover Page'!$B$29 -> Annual Performance Report 2022 | E1: =+'Cover Page'!$B$33 -> Boston Energy Production Facility
A3: Monitoring of Oxides of Nitrogen emissions | D3: Whole Installation | G3: See Notes in Cell Q3 | J3: =+A3 -> Monitoring of Oxides of Nitrogen emissions | N3: Per Combustion Line | Q3: Notes:
Q4: User to add logic to complete Whole installation, Table A5:G18. From the data in Per Combustion Line, Table J6:O79, subject to No. of lines installed
A5: mg/Nm3 | B5: 1/2 Hourly Reference Periods | E5: Daily Reference Periods
A6: =+'Cover Page'!C39 -> 2022 | B6: 1/2 hourly NOx ELV | C6: Monthly 1/2 hourly mean | D6: Highest 1/2 hourly maximum | E6: Daily NOx ELV | F6: Monthly daily mean | G6: Highest daily maximum | J6: =+A6 -> 2022 | K6: mg/Nm3 | L6: Monthly 1/2 hourly mean | M6: Monthly 1/2 hourly maximum | N6: Monthly daily mean | O6: Monthly daily maximum
A7: Jan | B7: 400 | C7: =L7 -> 67 | D7: =M7 -> 94 | E7: 200 | F7: =N7 -> 66.5 | G7: =O7 -> 80 | J7: A1 | K7: Jan | L7: 67 | M7: 94 | N7: 66.5 | O7: 80
A8: Feb | B8: 400 | C8: =L8 -> 73 | D8: =M8 -> 90 | E8: 200 | F8: =N8 -> 72.72 | G8: =O8 -> 83 | K8: Feb | L8: 73 | M8: 90 | N8: 72.72 | O8: 83
A9: Mar | B9: 400 | C9: 63 | D9: 86 | E9: 200 | F9: 63.18 | G9: 74 | K9: Mar | L9: 63 | M9: 86 | N9: 63.18 | O9: 74 | Q9: Whole Installation table A5:G18:
A10: Apr | B10: 400 | C10: 0 | D10: 0 | E10: 200 | F10: 0 | G10: 0 | K10: Apr | L10: 0 | M10: 0 | N10: 0 | O10: 0 | Q10: Mean: for 1/2 hourly and daily periods calculate mean of values across all operational combustion lines for the month
A11: May | B11: 400 | C11: 0 | D11: 0 | E11: 200 | F11: 0 | G11: 0 | K11: May | L11: 0 | M11: 0 | N11: 0 | O11: 0
A12: Jun | B12: 400 | C12: 0 | D12: 0 | E12: 200 | F12: 0 | G12: 0 | K12: Jun | L12: 0 | M12: 0 | N12: 0 | O12: 0
A13: Jul | B13: 400 | C13: 145 | D13: 246 | E13: 200 | F13: 144.53 | G13: 169 | K13: Jul | L13: 145 | M13: 246 | N13: 144.53 | O13: 169 | Q13: Maximum: for 1/2 hourly and daily periods use the highest value across all operational combustion lines for the month
A14: Aug | B14: 400 | C14: 86 | D14: 162 | E14: 200 | F14: 86.23 | G14: 114 | K14: Aug | L14: 86 | M14: 162 | N14: 86.23 | O14: 114
A15: Sep | B15: 400 | C15: 96 | D15: 169 | E15: 200 | F15: 95.58 | G15: 154 | K15: Sep | L15: 96 | M15: 169 | N15: 95.58 | O15: 154
A16: Oct | B16: 400 | C16: 117 | D16: 182 | E16: 200 | F16: 116.61 | G16: 138 | K16: Oct | L16: 117 | M16: 182 | N16: 116.61 | O16: 138
A17: Nov | B17: 400 | C17: 127 | D17: 200 | E17: 200 | F17: 127.23 | G17: 145 | K17: Nov | L17: 127 | M17: 200 | N17: 127.23 | O17: 145
A18: Dec | B18: 400 | C18: 134 | D18: 193 | E18: 200 | F18: 133.57 | G18: 169 | K18: Dec | L18: 134 | M18: 193 | N18: 133.57 | O18: 169
K19: Annual | L19: =AVERAGE(L7:L18) -> 75.66666667 | M19: =MAX(M7:M18) -> 246 | N19: =AVERAGE(N7:N18) -> 75.5125 | O19: =MAX(O7:O18) -> 169
A48: Comments :

Sheet TOC
A1: =+'Cover Page'!$B$29 -> Annual Performance Report 2022 | E1: =+'Cover Page'!$B$33 -> Boston Energy Production Facility
A3: Monitoring of Total organic carbon emissions | D3: Whole Installation | G3: See Notes in Cell Q3 | J3: =+A3 -> Monitoring of Total organic carbon emissions | N3: Per Combustion Line | Q3: Notes:
Q4: User to add logic to complete Whole installation, Table A5:G18. From the data in Per Combustion Line, Table J6:O79, subject to No. of lines installed
A5: mg/Nm3 | B5: 1/2 Hourly Reference Periods | E5: Daily Reference Periods
A6: =+'Cover Page'!C39 -> 2022 | B6: 1/2 hourly TOC ELV | C6: Monthly 1/2 hourly mean | D6: Highest 1/2 hourly maximum | E6: Daily TOC ELV | F6: Monthly daily mean | G6: Highest daily maximum | J6: =+A6 -> 2022 | K6: mg/Nm3 | L6: Monthly 1/2 hourly mean | M6: Monthly 1/2 hourly maximum | N6: Monthly daily mean | O6: Monthly daily maximum
A7: Jan | B7: 20 | C7: =L7 -> 0 | D7: =M7 -> 1 | E7: 10 | F7: =N7 -> 0 | G7: =O7 -> 0 | J7: A1 | K7: Jan | L7: 0 | M7: 1 | N7: 0 | O7: 0
A8: Feb | B8: 20 | C8: =L8 -> 0 | D8: =M8 -> 0 | E8: 10 | F8: =N8 -> 0 | G8: =O8 -> 0 | K8: Feb | L8: 0 | M8: 0 | N8: 0 | O8: 0
A9: Mar | B9: 20 | C9: 0 | D9: 0 | E9: 10 | F9: 0 | G9: 0 | K9: Mar | L9: 0 | M9: 0 | N9: 0 | O9: 0 | Q9: Whole Installation table A5:G18:
A10: Apr | B10: 20 | C10: 0 | D10: 0 | E10: 10 | F10: 0 | G10: 0 | K10: Apr | L10: 0 | M10: 0 | N10: 0 | O10: 0 | Q10: Mean: for 1/2 hourly and daily periods calculate mean of values across all operational combustion lines for the month
A11: May | B11: 20 | C11: 0 | D11: 0 | E11: 10 | F11: 0 | G11: 0 | K11: May | L11: 0 | M11: 0 | N11: 0 | O11: 0
A12: Jun | B12: 20 | C12: 0 | D12: 0 | E12: 10 | F12: 0 | G12: 0 | K12: Jun | L12: 0 | M12: 0 | N12: 0 | O12: 0
A13: Jul | B13: 20 | C13: 0 | D13: 3 | E13: 10 | F13: 0 | G13: 2 | K13: Jul | L13: 0 | M13: 3 | N13: 0 | O13: 2 | Q13: Maximum: for 1/2 hourly and daily periods use the highest value across all operational combustion lines for the month
A14: Aug | B14: 20 | C14: 0 | D14: 3 | E14: 10 | F14: 0 | G14: 1 | K14: Aug | L14: 0 | M14: 3 | N14: 0 | O14: 1
A15: Sep | B15: 20 | C15: 0 | D15: 21 | E15: 10 | F15: 0 | G15: 1 | K15: Sep | L15: 0 | M15: 21 | N15: 0 | O15: 1
A16: Oct | B16: 20 | C16: 0 | D16: 7 | E16: 10 | F16: 0 | G16: 1 | K16: Oct | L16: 0 | M16: 7 | N16: 0 | O16: 1
A17: Nov | B17: 20 | C17: 0 | D17: 3 | E17: 10 | F17: 0 | G17: 1 | K17: Nov | L17: 0 | M17: 3 | N17: 0 | O17: 1
A18: Dec | B18: 20 | C18: 0 | D18: 1 | E18: 10 | F18: 0 | G18: 1 | K18: Dec | L18: 0 | M18: 1 | N18: 0 | O18: 1
K19: Annual | L19: =AVERAGE(L7:L18) -> 0 | M19: =MAX(M7:M18) -> 21 | N19: =AVERAGE(N7:N18) -> 0 | O19: =MAX(O7:O18) -> 2
A48: Comments :

Sheet Particulates
A1: =+'Cover Page'!$B$29 -> Annual Performance Report 2022 | E1: =+'Cover Page'!$B$33 -> Boston Energy Production Facility
A3: Monitoring of Particulate matter emissions | D3: Whole Installation | G3: See Notes in Cell Q3 | J3: =+A3 -> Monitoring of Particulate matter emissions | N3: Per Combustion Line | Q3: Notes:
Q4: User to add logic to complete Whole installation, Table A5:G18. From the data in Per Combustion Line, Table J6:O79, subject to No. of lines installed
A5: mg/Nm3 | B5: 1/2 Hourly Reference Periods | E5: Daily Reference Periods
A6: =+'Cover Page'!C39 -> 2022 | B6: 1/2 hourly PM ELV | C6: Monthly 1/2 hourly mean | D6: Highest 1/2 hourly maximum | E6: Daily PM ELV | F6: Monthly daily mean | G6: Highest daily maximum | J6: =+A6 -> 2022 | K6: mg/Nm3 | L6: Monthly 1/2 hourly mean | M6: Monthly 1/2 hourly maximum | N6: Monthly daily mean | O6: Monthly daily maximum
A7: Jan | B7: 30 | C7: =L7 -> 0 | D7: =M7 -> 2 | E7: 10 | F7: =N7 -> 0 | G7: =O7 -> 1 | J7: A1 | K7: Jan | L7: 0 | M7: 2 | N7: 0 | O7: 1
A8: Feb | B8: 30 | C8: =L8 -> 0 | D8: =M8 -> 1 | E8: 10 | F8: =N8 -> 0 | G8: =O8 -> 1 | K8: Feb | L8: 0 | M8: 1 | N8: 0 | O8: 1
A9: Mar | B9: 30 | C9: 0 | D9: 4 | E9: 10 | F9: 0 | G9: 1 | K9: Mar | L9: 0 | M9: 4 | N9: 0 | O9: 1 | Q9: Whole Installation table A5:G18:
A10: Apr | B10: 30 | C10: 0 | D10: 0 | E10: 10 | F10: 0 | G10: 0 | K10: Apr | L10: 0 | M10: 0 | N10: 0 | O10: 0 | Q10: Mean: for 1/2 hourly and daily periods calculate mean of values across all operational combustion lines for the month
A11: May | B11: 30 | C11: 0 | D11: 0 | E11: 10 | F11: 0 | G11: 0 | K11: May | L11: 0 | M11: 0 | N11: 0 | O11: 0
A12: Jun | B12: 30 | C12: 0 | D12: 0 | E12: 10 | F12: 0 | G12: 0 | K12: Jun | L12: 0 | M12: 0 | N12: 0 | O12: 0
A13: Jul | B13: 30 | C13: 0 | D13: 2 | E13: 10 | F13: 0 | G13: 0 | K13: Jul | L13: 0 | M13: 2 | N13: 0 | O13: 0 | Q13: Maximum: for 1/2 hourly and daily periods use the highest value across all operational combustion lines for the month
A14: Aug | B14: 30 | C14: 0 | D14: 2 | E14: 10 | F14: 0 | G14: 1 | K14: Aug | L14: 0 | M14: 2 | N14: 0 | O14: 1
A15: Sep | B15: 30 | C15: 0 | D15: 2 | E15: 10 | F15: 0 | G15: 1 | K15: Sep | L15: 0 | M15: 2 | N15: 0 | O15: 1
A16: Oct | B16: 30 | C16: 1 | D16: 1 | E16: 10 | F16: 1 | G16: 1 | K16: Oct | L16: 1 | M16: 1 | N16: 1 | O16: 1
A17: Nov | B17: 30 | C17: 0 | D17: 5 | E17: 10 | F17: 0 | G17: 1 | K17: Nov | L17: 0 | M17: 5 | N17: 0 | O17: 1
A18: Dec | B18: 30 | C18: 1 | D18: 2 | E18: 10 | F18: 1 | G18: 1 | K18: Dec | L18: 1 | M18: 2 | N18: 1 | O18: 1
K19: Annual | L19: =AVERAGE(L7:L18) -> 0.1666666667 | M19: =MAX(M7:M18) -> 5 | N19: =AVERAGE(N7:N18) -> 0.1666666667 | O19: =MAX(O7:O18) -> 1
A48: Comments :

Sheet CO 0.5hourly
A1: =+'Cover Page'!$B$29 -> Annual Performance Report 2022 | E1: =+'Cover Page'!$B$33 -> Boston Energy Production Facility
A3: Monitoring of Carbon Monoxide (half hourly) | D3: Whole Installation | G3: See Notes in Cell Q3 | J3: =+A3 -> Monitoring of Carbon Monoxide (half hourly) | N3: Per Combustion Line | Q3: Notes:
Q4: User to add logic to complete Whole installation, Table A5:G18. From the data in Per Combustion Line, Table J6:O79, subject to No. of lines installed
A5: mg/Nm3 | B5: 1/2 Hourly Reference Periods | E5: Daily Reference Periods
A6: =+'Cover Page'!C39 -> 2022 | B6: 1/2 hourly CO ELV | C6: Monthly 1/2 hourly mean | D6: Highest 1/2 hourly maximum | E6: Daily CO ELV | F6: Monthly daily mean | G6: Highest daily maximum | J6: =+A6 -> 2022 | K6: mg/Nm3 | L6: Monthly 1/2 hourly mean | M6: Monthly 1/2 hourly maximum | N6: Monthly daily mean | O6: Monthly daily maximum
A7: Jan | B7: 100 | C7: =L7 -> 3 | D7: =M7 -> 14 | E7: 50 | F7: =N7 -> 3.5 | G7: =O7 -> 5 | J7: A1 | K7: Jan | L7: 3 | M7: 14 | N7: 3.5 | O7: 5
A8: Feb | B8: =+B7 -> 100 | C8: =L8 -> 4 | D8: =M8 -> 9 | E8: =+E7 -> 50 | F8: =N8 -> 4.36 | G8: =O8 -> 6 | K8: Feb | L8: 4 | M8: 9 | N8: 4.36 | O8: 6
A9: Mar | B9: =+B8 -> 100 | C9: 4 | D9: 10 | E9: =+E8 -> 50 | F9: 3.95 | G9: 5 | K9: Mar | L9: 4 | M9: 10 | N9: 3.95 | O9: 5 | Q9: Whole Installation table A5:G18:
A10: Apr | B10: 100 | C10: 0 | D10: 0 | E10: 50 | F10: 0 | G10: 0 | K10: Apr | L10: 0 | M10: 0 | N10: 0 | O10: 0 | Q10: Mean: for 1/2 hourly and daily periods calculate mean of values across all operational combustion lines for the month
A11: May | B11: 100 | C11: 0 | D11: 0 | E11: 50 | F11: 0 | G11: 0 | K11: May | L11: 0 | M11: 0 | N11: 0 | O11: 0
A12: Jun | B12: 100 | C12: 0 | D12: 0 | E12: 50 | F12: 0 | G12: 0 | K12: Jun | L12: 0 | M12: 0 | N12: 0 | O12: 0
A13: Jul | B13: 100 | C13: 5 | D13: 63 | E13: 50 | F13: 4.53 | G13: 9 | K13: Jul | L13: 5 | M13: 63 | N13: 4.53 | O13: 9 | Q13: Maximum: for 1/2 hourly and daily periods use the highest value across all operational combustion lines for the month
A14: Aug | B14: 100 | C14: 10 | D14: 123 | E14: 50 | F14: 9.76 | G14: 23 | K14: Aug | L14: 10 | M14: 123 | N14: 9.76 | O14: 23
A15: Sep | B15: 100 | C15: 8 | D15: 175 | E15: 50 | F15: 7.76 | G15: 23 | K15: Sep | L15: 8 | M15: 175 | N15: 7.76 | O15: 23
A16: Oct | B16: 100 | C16: 6 | D16: 169 | E16: 50 | F16: 6.38 | G16: 16 | K16: Oct | L16: 6 | M16: 169 | N16: 6.38 | O16: 16
A17: Nov | B17: 100 | C17: 5 | D17: 72 | E17: 50 | F17: 4.7 | G17: 10 | K17: Nov | L17: 5 | M17: 72 | N17: 4.7 | O17: 10
A18: Dec | B18: 100 | C18: 3 | D18: 24 | E18: 50 | F18: 3.42 | G18: 5 | K18: Dec | L18: 3 | M18: 24 | N18: 3.42 | O18: 5
K19: Annual | L19: =AVERAGE(L7:L18) -> 4 | M19: =MAX(M7:M18) -> 175 | N19: =AVERAGE(N7:N18) -> 4.03 | O19: =MAX(O7:O18) -> 23
A48: Comments :

Sheet NH3
A1: =+'Cover Page'!$B$29 -> Annual Performance Report 2022 | E1: =+'Cover Page'!$B$33 -> Boston Energy Production Facility
A3: Monitoring of Ammnonia emissions | D3: Whole Installation | G3: See Notes in Cell Q3 | J3: =+A3 -> Monitoring of Ammnonia emissions | N3: Per Combustion Line | Q3: Notes:
Q4: User to add logic to complete Whole installation, Table A5:G18. From the data in Per Combustion Line, Table J6:O79, subject to No. of lines installed
A5: mg/Nm3 | B5: 1/2 Hourly Reference Periods | E5: Daily Reference Periods
A6: =+'Cover Page'!C39 -> 2022 | B6: 1/2 hourly NH3 ELV | C6: Monthly 1/2 hourly mean | D6: Highest 1/2 hourly maximum | E6: Daily NH3 ELV | F6: Monthly daily mean | G6: Highest daily maximum | J6: =+A6 -> 2022 | K6: mg/Nm3 | L6: Monthly 1/2 hourly mean | M6: Monthly 1/2 hourly maximum | N6: Monthly daily mean | O6: Monthly daily maximum
A7: Jan | B7: 0 | C7: =L7 -> 0 | D7: =M7 -> 0 | E7: 10 | F7: =N7 -> 0 | G7: =O7 -> 0 | J7: A1 | K7: Jan | L7: 0 | M7: 0 | N7: 0 | O7: 0
A8: Feb | B8: =+B7 -> 0 | C8: =L8 -> 0 | D8: =M8 -> 1 | E8: =+E7 -> 10 | F8: =N8 -> 0 | G8: =O8 -> 1 | K8: Feb | L8: 0 | M8: 1 | N8: 0 | O8: 1
A9: Mar | B9: =+B8 -> 0 | C9: 0 | D9: 0 | E9: =+E8 -> 10 | F9: 0 | G9: 0 | K9: Mar | L9: 0 | M9: 0 | N9: 0 | O9: 0 | Q9: Whole Installation table A5:G18:
A10: Apr | B10: 0 | C10: 0 | D10: 0 | E10: 10 | F10: 0 | G10: 0 | K10: Apr | L10: 0 | M10: 0 | N10: 0 | O10: 0 | Q10: Mean: for 1/2 hourly and daily periods calculate mean of values across all operational combustion lines for the month
A11: May | B11: 0 | C11: 0 | D11: 0 | E11: 10 | F11: 0 | G11: 0 | K11: May | L11: 0 | M11: 0 | N11: 0 | O11: 0
A12: Jun | B12: 0 | C12: 0 | D12: 0 | E12: 10 | F12: 0 | G12: 0 | K12: Jun | L12: 0 | M12: 0 | N12: 0 | O12: 0
A13: Jul | B13: 0 | C13: 0 | D13: 1 | E13: 10 | F13: 0 | G13: 0 | K13: Jul | L13: 0 | M13: 1 | N13: 0 | O13: 0 | Q13: Maximum: for 1/2 hourly and daily periods use the highest value across all operational combustion lines for the month
A14: Aug | B14: 0 | C14: 2 | D14: 11 | E14: 10 | F14: 2.07 | G14: 5 | K14: Aug | L14: 2 | M14: 11 | N14: 2.07 | O14: 5
A15: Sep | B15: 0 | C15: 1 | D15: 7 | E15: 10 | F15: 0.7 | G15: 2 | K15: Sep | L15: 1 | M15: 7 | N15: 0.7 | O15: 2
A16: Oct | B16: 0 | C16: 0 | D16: 2 | E16: 10 | F16: 0.23 | G16: 2 | K16: Oct | L16: 0 | M16: 2 | N16: 0.23 | O16: 2
A17: Nov | B17: 0 | C17: 0 | D17: 4 | E17: 10 | F17: 0.47 | G17: 2 | K17: Nov | L17: 0 | M17: 4 | N17: 0.47 | O17: 2
A18: Dec | B18: 0 | C18: 1 | D18: 16 | E18: 10 | F18: 1 | G18: 4 | K18: Dec | L18: 1 | M18: 16 | N18: 1 | O18: 4
K19: Annual | L19: =AVERAGE(L7:L18) -> 0.3333333333 | M19: =MAX(M7:M18) -> 16 | N19: =AVERAGE(N7:N18) -> 0.3725 | O19: =MAX(O7:O18) -> 5
A48: Comments :
A49: An indicated ELV value of zero in the table above means that no ammonia limit is set in the permit.
